Cogmind - Beta 16 @@@ ROGUE MODE // 2025.12.15 @ 09:30:50 Player: EuleBlut Result: Destroyed by P-60 Hacker with Shock Rifle Performance ------------- Evolutions (4) 2000 Regions Visited (6) 1200 Robots Destroyed (66) 330 Value Destroyed (2582) 2582 Prototype IDs (2) 40 Alien Tech Used (0) 0 Bonus (500) 500 TOTAL SCORE: 6652 Bonus ------- Entered DSFs 500 Cogmind --------- Core Integrity 0/850 Matter 176/300 Energy 406/450 System Corruption 11% Temperature Cool (0) Movement Core (1600) Ox31 Location -6/Factory Parts ------- > --- POWER (2) -------- (None) > --- PROPULSION (4) --- (None) > --- UTILITY (7) ------ Huge Storage Unit Energy Well Advanced Targeting Computer Core Analyzer ECM Suite Improved System Shield > --- WEAPON (2) ------- Cooled Plasma Cannon > --- INVENTORY (25) --- Heat Sink Improved Heat Sink Large Storage Unit Weight Redist. System Core Analyzer Core Analyzer Hacking Suite Datajack Peak State ------------ > --- POWER ------------ Light Fission Core > --- PROPULSION ------- Improved Medium Treads Improved Medium Treads Improved Medium Treads Improved Medium Treads > --- UTILITY ---------- Huge Storage Unit Energy Well Advanced Targeting Computer Core Analyzer ECM Suite Hacking Suite Improved System Shield > --- WEAPON ----------- Advanced Beam Rifle Cooled Plasma Cannon > --- INVENTORY -------- Heat Sink Improved Heat Sink Large Storage Unit Weight Redist. System Core Analyzer Core Analyzer Hacking Suite Datajack [Rating: 58] Favorites ----------- Power Ion Engine Engine Ion Engine Power Core Light Fission Core Propulsion Armored Wheel Treads Light Treads Leg Carbon-fiber Leg Wheel Armored Wheel Utility ECM Suite Device ECM Suite Storage Large Storage Unit Processor Core Analyzer Hackware Hacking Suite Protection Utility Shielding Weapon Advanced Beam Rifle Energy Gun Advanced Beam Rifle Energy Cannon Ion Cannon Ballistic Gun Assault Rifle Launcher Heavy Missile Launcher Build | -11 -10 -9 -8 -7 -7 -6 ------- Run | Yrd Mat Mat Mat Fac DSF Fac Slots Evolved 8 | . . 2 2 2 . 2 Power 1 | . . . . 1 . . Propulsion 2 | . . . . . . 2 Utility 5 | . . 2 2 1 . . Weapon . | . . . . . . . Parts Attached 76 | 6 2 9 28 1 2 28 Power 9 | 1 . 1 2 . . 5 Engine 7 | 1 . 1 1 . . 4 Core 2 | . . . 1 . . 1 Reactor . | . . . . . . . Propulsion 25 | 2 . 2 9 . 2 10 Treads 9 | . . 2 2 . . 5 Leg 3 | . . . 3 . . . Wheel 13 | 2 . . 4 . 2 5 Hover . | . . . . . . . Flight . | . . . . . . . Utility 25 | 1 1 3 11 1 . 8 Device 7 | . . 1 5 1 . . Storage 4 | 1 . 1 . . . 2 Processor 3 | . . . . . . 3 Hackware 3 | . . . 2 . . 1 Protection 8 | . 1 1 4 . . 2 Artifact . | . . . . . . . Weapon 17 | 2 1 3 6 . . 5 Energy Gun 8 | 2 1 . 3 . . 2 Energy Cannon 4 | . . . 2 . . 2 Ballistic Gun 4 | . . 3 1 . . . Ballistic Cannon . | . . . . . . . Launcher 1 | . . . . . . 1 Special Weapon . | . . . . . . . Impact Weapon . | . . . . . . . Slashing Weapon . | . . . . . . . Piercing Weapon . | . . . . . . . Special Melee Weapon . | . . . . . . . Unidentified Prototypes 2 | . . . 1 . . 1 Parts Lost 55 | . 2 5 21 . 4 23 Power 7 | . . 1 2 . 1 3 Propulsion 19 | . 1 1 6 . 1 10 Utility 13 | . . . 7 . 2 4 Weapon 16 | . 1 3 6 . . 6 Highest Loss Streak 10 | . 2 4 10 . 4 10 To Critical Strikes 1 | . . . 1 . . . Average Backups 12 | 1 5 8 14 14 14 12 Power . | . 1 1 . . . . Propulsion 1 | 1 2 . . 3 2 2 Utility 7 | . . 5 9 6 6 7 Weapon 1 | . 1 . 1 3 3 1 Tool/Special . | . . . . . . . Unused Backups 14 | . . 1 3 . . 10 Power 2 | . . 1 1 . . . Propulsion . | . . . . . . . Utility 9 | . . . 1 . . 8 Weapon 1 | . . . 1 . . . Tool/Special 2 | . . . . . . 2 Average Slot Usage (%) 88 | . 88 85 85 92 90 90 Engine 7 | . 14 11 6 7 6 7 Core 1 | . . . 2 . . 1 Treads 9 | . . 16 6 15 13 8 Leg 1 | . . . 4 . . . Wheel 9 | . 26 . 5 . 1 15 Device 11 | . . 8 14 23 22 8 Storage 9 | . 14 11 9 7 7 9 Processor 5 | . . . . . . 12 Hackware 6 | . . . . 15 15 12 Protection 9 | . 4 15 18 7 6 . Energy Gun 5 | . 28 1 3 7 7 5 Energy Cannon 2 | . . . 2 7 7 4 Ballistic Gun 6 | . . 20 10 . . . Peak Build Rating 58 | 6 7 12 28 29 29 58 Average Rating 27 | 3 6 8 18 29 28 44 On Entrance 15 | . 6 7 12 28 29 23 Avg Prop Armor Cover (%) . | . . . . . . . Naked Turns . | . . . . . . . Heaviest Build 116 | 13 14 36 46 48 48 116 Greatest Support 120 | 26 26 40 46 40 40 120 Greatest Overweight (x) 31 | . . 4 13 1 1 31 Average Overweight (x) . | . . . 1 1 1 . Largest Inventory Capacity 25 | 8 8 15 15 15 15 25 Average Capacity 16 | 6 8 10 15 15 15 21 Most Carried 20 | 4 8 14 15 14 15 20 Average Carried 12 | 2 5 8 14 14 14 12 Final Capacity 25 | 8 8 15 15 15 15 25 Final Carried 15 | 3 8 14 15 14 13 8 Class Distribution -------------------- 41% | Scavenger-Mutant 39% | Mutant 18% | Hacker-Mutant Dominant Class ---------------- Mutant | -10/Materials Mutant | -9/Materials Mutant | -8/Materials Scavenger-Mutant | -7/Factory Scavenger-Mutant | -7/DSF Scavenger-Mutant | -6/Factory Resources | -11 -10 -9 -8 -7 -7 -6 ----------- Run | Yrd Mat Mat Mat Fac DSF Fac Matter Collected 1287 | 214 56 223 493 . 10 291 Remotely . | . . . . . . . Salvage Created 2769 | . 332 314 1379 . 71 673 Parts 148 | . 22 19 66 . 3 38 Haulers Intercepted 1 | . . . 1 . . . Recyclers Shooed 3 | . . . 1 . . 2 Parts Field Recycled . | . . . . . . . Retrieved Matter . | . . . . . . . Parts Self-Destructed . | . . . . . . . Prevented . | . . . . . . . Parts Restored . | . . . . . . . Kills | -11 -10 -9 -8 -7 -7 -6 ------- Run | Yrd Mat Mat Mat Fac DSF Fac Combat Hostiles Destroyed 55 | . 9 6 27 . 1 12 Guns 41 | . 8 6 21 . 1 5 Cannons 8 | . . . 3 . . 5 AOE 3 | . 1 . . . . 2 Classes Destroyed 12 | . 3 1 4 . . 4 Worker 1 | . . . . . . 1 Builder 2 | . . . 1 . . 1 Hauler 1 | . . . 1 . . . Recycler 1 | . . . . . . 1 Watcher 6 | . 1 1 3 . . 1 Swarmer 9 | . 3 . 4 . . 2 Grunt 23 | . 6 2 13 . . 2 Brawler 1 | . . . . . . 1 Sentry 11 | . . 4 5 . . 2 Specialist 3 | . . . 2 . 1 . Hunter 5 | . . . 3 . . 2 Programmer 3 | . . . . . . 3 Best Kill Streak 10 | . 6 2 10 . 1 6 Combat Bots Only 8 | . 5 2 8 . 1 3 Max Kills in Single Turn 2 | . 2 1 2 . 1 2 Gunslinging 1 | . . . 1 . . . Exploded 1 | . 1 . . . . 1 Melee . | . . . . . . . Uniques/NPCs Destroyed . | . . . . . . . Combat | -11 -10 -9 -8 -7 -7 -6 -------- Run | Yrd Mat Mat Mat Fac DSF Fac Hostile Shots Fired 691 | . 39 68 250 . 47 287 Missed 211 | . 10 17 82 . 9 93 Hits 480 | . 29 51 168 . 38 194 Projectile 480 | . 29 51 168 . 38 194 AOE 3 | . . . . . . 3 Critical Strikes 15 | . 1 . 6 . . 8 Actively Blocked 1 | . . . 1 . . . Damage Taken 7901 | . 368 721 2342 . 911 3559 Core 1689 | . 139 130 367 . 203 850 Absorbed by Shields . | . . . . . . . Redirected to Shielding 48 | . . 18 30 . . . Core Remaining (%) 63 | 100 44 67 33 . 71 . Volleys Fired 208 | . 19 29 101 . 7 52 Largest 2 | . 2 2 2 . 2 2 Hottest 121 | . 80 43 121 . 121 121 Shots Fired 379 | . 37 53 188 . 14 87 Gun 285 | . 37 53 143 . 7 45 Cannon 86 | . . . 45 . 7 34 Launcher 8 | . . . . . . 8 Special . | . . . . . . . Kinetic 145 | . . 49 96 . . . Thermal 208 | . 19 4 92 . 14 79 Explosive 8 | . . . . . . 8 Electromagnetic 18 | . 18 . . . . . Robot Hit Streak 24 | . 9 11 24 . 7 9 Robot Miss Streak 4 | . 3 3 4 . 1 3 Penetration Max . | . . . . . . . Secondary Targets 7 | . 4 1 2 . . . Max Gunslinging Chain 1 | . 1 1 1 . . . Shots Hit Robots 261 | . 26 39 130 . 11 55 Core Hits 119 | . 17 13 57 . 2 30 Critical Kills 3 | . . . 3 . . . Critical Parts Destroyed . | . . . . . . . Critical Strikes 13 | . 1 . 11 . . 1 Burn 9 | . . . 8 . . 1 Meltdown 3 | . . . 3 . . . Corrupt 1 | . 1 . . . . . Melee Attacks . | . . . . . . . Impact . | . . . . . . . Slashing . | . . . . . . . Piercing . | . . . . . . . Sneak Attacks . | . . . . . . . Combat Hostiles . | . . . . . . . Follow-up Attacks . | . . . . . . . Damage Inflicted 5008 | . 404 516 2178 . 232 1678 Guns 3225 | . 325 508 1602 . 120 670 Cannons 1174 | . . . 561 . 112 501 Explosions 566 | . 59 . . . . 507 Melee . | . . . . . . . Ramming 43 | . 20 8 15 . . . Kinetic 1401 | . . 473 928 . . . Thermal 2855 | . 182 35 1235 . 232 1171 Explosive 507 | . . . . . . 507 Electromagnetic 202 | . 202 . . . . . Impact . | . . . . . . . Slashing . | . . . . . . . Piercing . | . . . . . . . Highest Corruption 11 | . . . . . . 11 Average Corruption 5 | . . . . . . 5 Corruption Purged . | . . . . . . . Corruption Blocked . | . . . . . . . Effects 39 | . . . . . . 39 Message Errors 10 | . . . . . . 10 Matter Fused 13 | . . . . . . 13 Heat Flow Errors 3 | . . . . . . 3 Energy Discharges 3 | . . . . . . 3 Parts Rejected 1 | . . . . . . 1 Parts Fused 1 | . . . . . . 1 Data Loss (minor) 3 | . . . . . . 3 Data Loss (major) 1 | . . . . . . 1 Misfires 3 | . . . . . . 3 Alerts 1 | . . . . . . 1 Overload Shots . | . . . . . . . Overflow Damage 58 | . . . . . . 58 Projectiles 2 | . . . . . . 2 Explosions 56 | . . . . . . 56 Melee . | . . . . . . . Knockbacks 1 | . . . 1 . . . Impact 1 | . . . 1 . . . Kinetic . | . . . . . . . Secondary . | . . . . . . . Self-Inflicted Damage 184 | . 32 . 7 . . 145 Shots 3 | . 1 . . . . 2 Rammed 8 | . 3 3 2 . . . Targets Rammed 8 | . 3 3 2 . . . Kicked . | . . . . . . . Crushed . | . . . . . . . Highest Temperature 307 | . 224 6 212 . . 307 Average Temperature 72 | . 93 4 47 . . 83 Received Heat Transfer 1953 | . 174 294 801 . 63 621 Siege Activations . | . . . . . . . Martial Activations . | . . . . . . . Shielding Activations . | . . . . . . . Robots Disrupted . | . . . . . . . Combat Hostiles . | . . . . . . . Robots Corrupted . | . . . . . . . Combat Hostiles . | . . . . . . . Parts Fried . | . . . . . . . Impact Corruptions . | . . . . . . . Robots Melted 3 | . . . 3 . . . Combat Hostiles 3 | . . . 3 . . . Parts Melted 15 | . . . 9 . . 6 Heat Transferred 5876 | . 325 75 3108 . 407 1961 Parts Sabotaged . | . . . . . . . Parts Stolen . | . . . . . . . Parts Stripped . | . . . . . . . Power Chain Reactions 1 | . 1 . . . . . Alert | -11 -10 -9 -8 -7 -7 -6 ------- Run | Yrd Mat Mat Mat Fac DSF Fac Maximum Alert Level 1 | . . . 1 . . . Low Security (%) 91 | 100 100 100 67 100 100 100 Level 1 8 | . . . 32 . . . Level 2 . | . . . . . . . Level 3 . | . . . . . . . Level 4 . | . . . . . . . Level 5 . | . . . . . . . High Security . | . . . . . . . Max Security . | . . . . . . . Peak Influence 294 | . 168 77 294 98 20 199 Initial 98 | . . 66 . 98 . 7 Average 55 | . 64 19 94 43 15 50 Influence Increases 1720 | . 268 177 741 . 35 499 Destroy 0b10 Robot/C 1100 | . 180 120 540 . 20 240 Destroy 0b10 Robot/NC 55 | . 5 5 25 . . 20 Destroy Leader 314 | . 32 52 158 . . 72 Disable Machine 120 | . . . 15 . . 105 Destroy Structure 71 | . 6 . 3 . . 62 Lose Combat Pursuer 60 | . 45 . . . 15 . Influence Decreases 1648 | . 110 335 525 216 20 442 Entered New Map 218 | . . 92 . 118 . 8 Time Decay 987 | . 90 193 315 98 . 291 Lost Part 443 | . 20 50 210 . 20 143 Squads Dispatched 19 | . 2 1 6 . 1 9 Investigation 1 | . . . 1 . . . Extermination 4 | . . . . . . 4 Reinforcement 11 | . 2 1 5 . 1 2 Assault . | . . . . . . . Garrison 3 | . . . . . . 3 Intercept . | . . . . . . . Searches Triggered . | . . . . . . . Construction Impeded 3 | . . . 1 . . 2 Haulers Reinforced . | . . . . . . . Active Scanning Responses . | . . . . . . . Cargo Convoy Interrupts . | . . . . . . . Stealth | -11 -10 -9 -8 -7 -7 -6 --------- Run | Yrd Mat Mat Mat Fac DSF Fac Distress Signals 5 | . 2 . 3 . . . Communications Jammed . | . . . . . . . Distress Signals . | . . . . . . . Times Spotted 98 | . 15 11 41 . 5 26 Peak Tracking Total 7 | . 4 3 7 . 3 4 Tactical Retreats 10 | . 2 . 1 . 2 5 ECM-based Alert Blocks 7 | . . . 1 . 1 5 Traps | -11 -10 -9 -8 -7 -7 -6 ------- Run | Yrd Mat Mat Mat Fac DSF Fac Traps Triggered 5 | . . . 1 . 1 3 Indirectly . | . . . . . . . Trap Hack Attempts . | . . . . . . . Triggered . | . . . . . . . Disarmed . | . . . . . . . Reprogrammed . | . . . . . . . Reused . | . . . . . . . Traps Extracted . | . . . . . . . Installed . | . . . . . . . Triggered . | . . . . . . . Machines | -11 -10 -9 -8 -7 -7 -6 ---------- Run | Yrd Mat Mat Mat Fac DSF Fac Machines Disabled 8 | . . . 1 . . 7 Max in Single Turn 3 | . . . 1 . . 3 Machines Repaired . | . . . . . . . Machines Dismantled . | . . . . . . . Machines Sabotaged . | . . . . . . . Overloaded Fab Kills . | . . . . . . . Hacking | -11 -10 -9 -8 -7 -7 -6 --------- Run | Yrd Mat Mat Mat Fac DSF Fac Machines Accessed 5 | . 1 . 2 1 . 1 Terminals 5 | . 1 . 2 1 . 1 Fabricators . | . . . . . . . Repair Stations . | . . . . . . . Recycling Units . | . . . . . . . Scanalyzers . | . . . . . . . Garrison Access . | . . . . . . . Total Hacks 12 | . 4 . 5 2 . 1 Successful 4 | . . . 2 1 . 1 Failed 8 | . 4 . 3 1 . . Catastrophic 1 | . 1 . . . . . Database Lockouts . | . . . . . . . Manual 5 | . 4 . . . . 1 Terminals 12 | . 4 . 5 2 . 1 Fabricators . | . . . . . . . Repair Stations . | . . . . . . . Recycling Units . | . . . . . . . Scanalyzers . | . . . . . . . Garrison Access . | . . . . . . . Terminal Hacks 4 | . . . 2 1 . 1 Open DSF 2 | . . . . 1 . 1 Alert Level 2 | . . . 2 . . . Fabricator Hacks . | . . . . . . . Repair Station Hacks . | . . . . . . . Recycling Unit Hacks . | . . . . . . . Scanalyzer . | . . . . . . . Garrison Access Hacks . | . . . . . . . Unauthorized Hacks . | . . . . . . . Terminals . | . . . . . . . Fabricators . | . . . . . . . Repair Stations . | . . . . . . . Recycling Units . | . . . . . . . Scanalyzers . | . . . . . . . Garrison Access . | . . . . . . . Data Cores Recovered . | . . . . . . . Used . | . . . . . . . Hacking Detections 3 | . 1 . 2 . . . Full Trace Events 1 | . . . 1 . . . Feedback Events . | . . . . . . . Feedback Blocked . | . . . . . . . Robot Schematics Acquired . | . . . . . . . Robots Built . | . . . . . . . Authchips . | . . . . . . . Time . | . . . . . . . Total Robot Build Rating . | . . . . . . . Part Schematics Acquired . | . . . . . . . Parts Built . | . . . . . . . Authchips . | . . . . . . . Time . | . . . . . . . Total Part Build Rating . | . . . . . . . Part Studies Acquired . | . . . . . . . Parts Repaired . | . . . . . . . Time . | . . . . . . . Parts Recycled . | . . . . . . . Recycled Matter . | . . . . . . . Retrieved Matter . | . . . . . . . Retrieved Components . | . . . . . . . Parts Scanalyzed . | . . . . . . . Part Schematics Acquired . | . . . . . . . Parts Damaged . | . . . . . . . Bothacking | -11 -10 -9 -8 -7 -7 -6 ------------ Run | Yrd Mat Mat Mat Fac DSF Fac Used RIF Installer . | . . . . . . . Robots Hacked . | . . . . . . . Non-combat . | . . . . . . . Combat . | . . . . . . . Robot Hacks Applied . | . . . . . . . Relay Couplers Released . | . . . . . . . Fabnet Peak Effective % . | . . . . . . . Robots Rewired . | . . . . . . . Allies Hacked . | . . . . . . . Hacks Repelled . | . . . . . . . Allies | -11 -10 -9 -8 -7 -7 -6 -------- Run | Yrd Mat Mat Mat Fac DSF Fac Total Allies . | . . . . . . . Largest Group . | . . . . . . . Highest-Rated Group . | . . . . . . . Highest-Rated Ally . | . . . . . . . Total Orders . | . . . . . . . Ally Attacks . | . . . . . . . Total Damage . | . . . . . . . Kills . | . . . . . . . Allies Corrupted . | . . . . . . . Allies Melted . | . . . . . . . Intel | -11 -10 -9 -8 -7 -7 -6 ------- Run | Yrd Mat Mat Mat Fac DSF Fac Active Infowar (turns) 3819 | . . 628 1208 244 134 1605 ECM 3819 | . . 628 1208 244 134 1605 Robot Analysis Total . | . . . . . . . Derelict Logs Recovered . | . . . . . . . Drone Launches . | . . . . . . . Drone Recoveries . | . . . . . . . Exploration | -11 -10 -9 -8 -7 -7 -6 ------------- Run | Yrd Mat Mat Mat Fac DSF Fac Turns Passed 4693 | 56 243 836 1263 244 149 1902 Spaces Moved 2537 | 45 176 416 537 102 59 1202 Core 74 | 3 . 57 12 . . 2 Treads 1011 | . . 321 207 102 46 335 Legs 86 | . . . 86 . . . Wheels 1366 | 42 176 38 232 . 13 865 Hover . | . . . . . . . Flight . | . . . . . . . Fastest Speed 50 | 50 90 100 95 240 105 90 Average Speed 141 | 92 90 166 159 240 210 121 Slowest Speed 1600 | 100 100 250 700 240 240 1600 Overloaded Moves . | . . . . . . . Propulsion Burnouts . | . . . . . . . Robots Hopped . | . . . . . . . Potential Cave-ins . | . . . . . . . Cave-ins Triggered . | . . . . . . . Exploration Rate (%) 25 | 4 39 22 37 2 53 19 Regions Visited 6 Branch Regions . Pre-discovered Areas . | . . . . . . . Known Exits Taken 1 | . . . . 1 . . Unknown Exits Taken 4 | 1 1 1 1 . . . Scrap Searched . | . . . . . . . Spaces Dug . | . . . . . . . Terrain Destroyed 76 | . 5 . . . . 71 Melee . | . . . . . . . Projectile . | . . . . . . . AOE 76 | . 5 . . . . 71 Terrain Rammed . | . . . . . . . Walls Destroyed . | . . . . . . . Machines Disabled . | . . . . . . . Actions | -11 -10 -9 -8 -7 -7 -6 --------- Run | Yrd Mat Mat Mat Fac DSF Fac Total 3280 | 59 222 505 758 102 71 1563 Wait 364 | . 16 32 65 . . 251 Move 2531 | 44 175 415 536 101 58 1202 Hop . | . . . . . . . Pick Up 75 | 9 7 15 18 . 2 24 Fast Attach 12 | . . . 12 . . . Attach 61 | 6 2 8 15 1 2 27 Detach 2 | . . . 1 . . 1 Swap 4 | . . 1 1 . . 2 Drop 15 | . . 2 7 . 2 4 Fire 208 | . 19 29 101 . 7 52 Melee . | . . . . . . . Ram 5 | . 3 . 2 . . . Kick . | . . . . . . . Crush 3 | . . 3 . . . . Escape Stasis . | . . . . . . . Rewire . | . . . . . . . Trap . | . . . . . . . Miscellaneous . | . . . . . . . Route ------- -11/Scrapyard -10/Materials -9/Materials -8/Materials -7/Factory -7/DSF -6/Factory History --------- Turn | Location | Event 2 | -11/Scrapyard | Met Revision 17 44 | -11/Scrapyard | Discovered new exit (range 13) 57 | -11/Scrapyard | Entered Materials 280 | -10/Materials | Core integrity fell below 50% 288 | -10/Materials | Discovered new exit (range 12) 300 | -10/Materials | Entered another Materials area 300 | -9/Materials | Evolved 2 slots: Utility x2 315 | -9/Materials | Build established: Mutant 385 | -9/Materials | Lost 4 parts (1p1n2w) 1112 | -9/Materials | Discovered new exit (range 8) 1136 | -9/Materials | Entered another Materials area 1136 | -8/Materials | Evolved 2 slots: Utility x2 1659 | -8/Materials | Lost 4 parts (2n1u1w) 1883 | -8/Materials | Lost 4 parts (1p1n1u1w) 2025 | -8/Materials | Destroyed 8 combat bots 2218 | -8/Materials | Core integrity fell below 50% 2254 | -8/Materials | Lost 10 parts (1p2n5u2w) 2278 | -8/Materials | Discovered new exit (range 12) 2399 | -8/Materials | Entered Factory 2399 | -7/Factory | Evolved 2 slots: Power x1, Utility x1 2553 | -7/Factory | Build established: Scavenger-Mutant 2640 | -7/Factory | Identified exit to DSF 2643 | -7/Factory | Entered DSF 2708 | -7/DSF | Additional patrols routed to DSF 2770 | -7/DSF | Discovered new exit (range 16) 2792 | -7/DSF | Entered Factory 2792 | -6/Factory | Evolved 2 slots: Propulsion x2 2812 | -6/Factory | Lost 4 parts (1p1n2u) 2839 | -6/Factory | Garrison activated, responded to threat 3778 | -6/Factory | Spotted B-75 Beast 3779 | -6/Factory | Allied Derelicts emerged from ambush trap array 3820 | -6/Factory | Lost 3 allies 4072 | -6/Factory | Lost 10 parts (3p4n1u2w) 4321 | -6/Factory | Build established: Hacker-Mutant 4637 | -6/Factory | Core integrity fell below 50% 4682 | -6/Factory | Core integrity fell below 20% 4686 | -6/Factory | System corruption reached 10% 4694 | -6/Factory | Destroyed by P-60 Hacker with Shock Rifle Last Messages --------------- K-01 Serf destroyed. K-01 Serf collects debris. System corrupted: Lgt. Fission Core rejected. K-01 Serf collects debris. Imp. Medium Treads destroyed. Slug penetrates Wall. Imp. Medium Treads destroyed. K-01 Serf collects debris. System corrupted: IFF burst signal emitted. K-01 Serf collects debris. Penetrated by Slug. K-01 Serf collects debris. Knocked back. P-60 Hacker resets U-05 Engineer, system corruption cleaned. Penetrated by Slug. Hacking Suite destroyed. System corrupted: Substantial component data lost. M-13 Machinist repairs P-60 Hacker. Map ----- +----------------------------------------------------+ | # """ # #?# ###/########+####?? | | # ## ##?# """"# = # # #?? | | ############ #??# """"# # # #?? | | ???????????# #??# """"# # # " " #?? | | ???????????# #??# """"# # "R" #?? | | ???????????# #??# """"# # """ #?? | | ???????????# #??# """"# *=#### #?? | | ?????????### #### """"#= ###########?? | | ########## ## # !!##??????????? | | # ####+#### #????##?????? | | # = ##%! ##### ####??? | | # %% "" # # # ###? | | # ## # % """## | | # "#+#+# # !# | | # ! # # # | | # = ;;=% ### # | | # ## #; * ### " | | # ######+#####; H # " | | # #???????????# * # " | | # #???????????# + " | | # ##??????????# # | | + +??????????# sm % # | | # ##??????????## %p####+##+# | | # #????????????# ##% % | | # #????????????# % ;# | | ####### #????????????# @# = " | | ####### #????????????# %## # # """" | | # # #????????????# ## ##%" # | | # # #????????????# ## |# #? | | # !== # ##??????????## ## ###???????? | | # !== + +??????????/ ## #?????????? | | # !== # ##????????? ## ## #?????????? | | # # #????????? ??# ## # ?????????? | | #! # #??########### #" " "####????????? | | #######+#### ## S"##??????????? | | !/ # %+ #???????????? | | /= # % ""#######???????????? | | / # ######### ??????????????????? | | # #???????# ??????????????????? | | + "???##??# ??????????????????? | | ! #%% " # #??# ??????????????????? | | ############ %! """ ###? ??????????????????? | | ?????????# / %= #? ??????????????????? | | ?????????#% /!% %* #? ??????????????????? | | ?????????# %//! "" "" #????????????????????? | | ???????? + = % "" F" #????????????????????? | | ??????"" # "" "" #????????????????????? | | ????? ?# ??????????????????????? | | ???? ??# %% ?????????????????????? | | ???##????# "%%" %** #????????????????????? | +----------------------------------------------------+ Best States ------------- Heat Dissipation 48 Energy Generation 31 Energy Capacity 805 Matter Stores 300 Matter Capacity 300 Sight Range 16 Terrain Scan Density 10 ECM Strength 2 Additional Mass Support 6 Armor Coverage 375 Utility Shielding 33 Evasion (%) 42 Targeting Accuracy 8 Core Analysis 6 Armor Integrity Analysis 30 Recoil Reduction 4 Offensive Hacking 10 Defensive Hacking 12 Item Schematics ----------------- None Robot Schematics ------------------ None Fabricated ------------ Nothing Repaired ---------- Nothing Studied --------- None Alien Tech Used ----------------- None Achievements -------------- It's Just You Serviceable Loadout Window Shopping Challenges ------------ None Game ------ Seed RiotCloakingInitializer Manual? 0 Play Time 00:53:34 Cumulative 8.6 hours Start 2025.12.15 @ 08:38:46 End 2025.12.15 @ 09:30:50 Sessions 1 Manual Loads 0 Difficulty Rogue Special Mode None Game No. 24 Rogue 23 Adventurer 0 Explorer 1 Win Type - Total 0 Types 0/0/0/0/0/0/0/0/0/0 Lore% 8 Gallery% 12 Achievement% 11 Wizard Run 0 Options --------- Layout 1 ASCII 0 Keyboard 0 Movement Mouse Keybinds 0 Fullscreen 2 Font 24/Smallcaps Map View 50x35 Zoom Use 3% Tactical HUD 0 Map Filters NONE Filters NONE Steam 1 RUN: 5c5f2b18-c2fe-47d4-be8a-71be2de70148